[Event "European Rapid Championship 2021"]
[Site "Katowice"]
[Date "2021.12.19"]
[Round "9.5"]
[White "Mirzoev, Emil"]
[Black "Krasenkow, Michal"]
[Result "0-1"]
[ECO "A28"]
[WhiteElo "2418"]
[BlackElo "2576"]
[Annotator "ChessBase"]
[PlyCount "82"]
[EventDate "2021.12.18"]
[EventType "swiss"]
[EventCountry "POL"]
[SourceTitle "playchess.com"]
[Source "ChessBase"]
[SourceQuality "1"]
[TimeControl "900+10"]

1. c4 {[%emt 0:00:02]} e5 {[%emt 0:00:02]} 2. Nc3 {[%emt 0:00:02]} Bb4 {
[%emt 0:00:06]} 3. Qc2 {[%emt 0:00:05]} Nf6 {[%emt 0:00:13]} 4. Nf3 {[%emt 0:
00:02]} Nc6 {[%emt 0:00:05]} 5. e3 {[%emt 0:00:02]} Bxc3 {[%emt 0:00:11]} 6.
bxc3 {[%emt 0:00:19]} e4 {[%emt 0:00:30]} 7. Nd4 {[%emt 0:00:30]} O-O {[%emt 0:
00:10]} 8. Be2 {[%emt 0:00:35]} Ne5 {[%emt 0:00:21]} 9. f4 {[%emt 0:01:24]} Ng6
{[%emt 0:00:32]} 10. d3 {[%emt 0:02:18]} Re8 {[%emt 0:00:35]} 11. O-O {[%emt 0:
01:09]} d6 {[%emt 0:01:37]} 12. f5 {[%emt 0:01:24]} exd3 {[%emt 0:00:11]} 13.
Bxd3 {[%emt 0:00:33]} Ne5 {[%emt 0:00:01]} 14. Be2 {[%emt 0:00:40]} b6 {
[%emt 0:00:10]} 15. Bf3 {[%emt 0:00:34]} Rb8 {[%emt 0:01:00]} 16. e4 {[%emt 0:
00:42]} Ba6 {[%emt 0:00:28]} 17. Bg5 {[%emt 0:00:35]} Bxc4 {[%emt 0:00:13]} 18.
Be2 {[%emt 0:00:08]} Bxe2 {[%emt 0:00:34]} 19. Nxe2 {[%emt 0:00:22]} Ned7 {
[%emt 0:00:35]} 20. Nf4 {[%emt 0:00:51]} Qe7 {[%emt 0:01:39]} 21. Rae1 {
[%emt 0:00:59]} Qe5 {[%emt 0:00:58]} 22. Nd3 {[%emt 0:00:08]} Qb5 {[%emt 0:00:
11]} 23. Nf2 {[%emt 0:00:23]} Qc4 {[%emt 0:00:39]} 24. Re3 {[%emt 0:00:35]} d5
{[%emt 0:01:51]} 25. Bxf6 {[%emt 0:02:05]} Nxf6 {[%emt 0:00:02]} 26. e5 {
[%emt 0:00:29]} d4 {[%emt 0:00:23]} 27. Ree1 {[%emt 0:01:11]} Nd5 {[%emt 0:00:
12]} 28. Qe4 {[%emt 0:00:12]} Nxc3 {[%emt 0:02:23]} 29. Qg4 {[%emt 0:00:00]}
Kh8 {[%emt 0:00:37]} 30. Nh3 {[%emt 0:00:48]} Qd5 {[%emt 0:01:22]} 31. Nf4 {
[%emt 0:00:38]} Qc5 {[%emt 0:00:49]} 32. Nh5 {[%emt 0:00:23]} Rg8 {[%emt 0:00:
18]} 33. e6 {[%emt 0:00:12]} d3+ {[%emt 0:00:07]} 34. Kh1 {[%emt 0:00:02]} fxe6
{[%emt 0:00:08]} 35. Rxe6 {[%emt 0:00:12]} d2 {[%emt 0:00:09]} 36. Nf4 {
[%emt 0:00:09]} Rgf8 {[%emt 0:00:14]} 37. Qh3 {[%emt 0:00:25]} d1=Q {[%emt 0:
00:23]} 38. Rxd1 {[%emt 0:00:08]} Nxd1 {[%emt 0:00:01]} 39. Ng6+ {[%emt 0:00:
02]} Kg8 {[%emt 0:00:01]} 40. Ne7+ {[%emt 0:00:12]} Qxe7 41. Qb3 Qf7 {[%emt 0:
00:15]} 0-1

[Event "European Rapid Championship 2021"]
[Site "Katowice"]
[Date "2021.12.19"]
[Round "9.5"]
[White "Pacuszka, Tomasz"]
[Black "Szwed, Jacek"]
[Result "1-0"]
[ECO "C02"]
[WhiteElo "2193"]
[BlackElo "2372"]
[Annotator "NA"]
[PlyCount "91"]
[EventDate "2021.12.18"]
[EventType "swiss"]
[EventCountry "POL"]
[SourceTitle "playchess.com"]
[Source "ChessBase"]
[SourceQuality "1"]
[TimeControl "900+10"]

1. e4 {[%emt 0:00:01]} e6 {[%emt 0:00:11]} 2. d4 {[%emt 0:00:02]} d5 {[%emt 0:
00:05]} 3. e5 {[%emt 0:00:01]} c5 {[%emt 0:00:01]} 4. c3 {[%emt 0:00:01]} Nc6 {
[%emt 0:00:01]} 5. Nf3 {[%emt 0:00:01]} Bd7 {[%emt 0:00:01]} 6. Be2 {[%emt 0:
00:09]} Rc8 {[%emt 0:00:02]} 7. O-O {[%emt 0:00:21]} a6 {[%emt 0:00:04]} 8. Na3
{[%emt 0:00:48]} cxd4 {[%emt 0:00:02]} 9. cxd4 {[%emt 0:00:00]} Bxa3 {[%emt 0:
00:01]} 10. bxa3 {[%emt 0:00:01]} Nge7 {[%emt 0:00:13]} 11. Rb1 {[%emt 0:00:32]
} Na5 {[%emt 0:00:02]} 12. a4 {[%emt 0:00:11]} Nc4 {[%emt 0:04:27]} 13. Rxb7 {
[%emt 0:00:28]} Bc6 {[%emt 0:00:26]} 14. Rb1 {[%emt 0:00:21]} Qd7 {[%emt 0:02:
19]} 15. Bd3 {[%emt 0:00:15]} Bxa4 {[%emt 0:00:25]} 16. Qe2 {[%emt 0:00:02]}
O-O {[%emt 0:02:55]} 17. Re1 {[%emt 0:03:27]} Nc6 {[%emt 0:02:21]} 18. h4 {
[%emt 0:03:32]} Qa7 {[%emt 0:01:36]} 19. Be3 {[%emt 0:00:10]} N6a5 {[%emt 0:02:
48]} 20. Rb4 {[%emt 0:01:12]} Bb5 {[%emt 0:00:09]} 21. a4 {[%emt 0:02:39]} Bc6
{[%emt 0:00:07]} 22. Bxh7+ {[%emt 0:00:24]} Kxh7 {[%emt 0:00:01]} 23. Ng5+ {
[%emt 0:00:01]} Kg8 {[%emt 0:00:01]} 24. Qh5 {[%emt 0:00:10]} Rfd8 {[%emt 0:00:
30]} 25. Qh7+ {[%emt 0:00:21]} Kf8 {[%emt 0:00:00]} 26. Qh8+ {[%emt 0:00:04]}
Ke7 {[%emt 0:00:01]} 27. Qxg7 {[%emt 0:00:01]} Rf8 {[%emt 0:00:01]} 28. Nh7 {
[%emt 0:00:20]} Nxe3 {[%emt 0:00:37]} 29. Rxe3 {[%emt 0:00:11]} Rg8 {[%emt 0:
00:11]} 30. Qh6 {[%emt 0:00:46]} Rg6 {[%emt 0:00:03]} 31. Qh5 {[%emt 0:00:07]}
Rh8 {[%emt 0:00:15]} 32. Rg3 {[%emt 0:00:07]} Kd8 {[%emt 0:00:19]} 33. Rxg6 {
[%emt 0:00:22]} fxg6 {[%emt 0:00:00]} 34. Qg5+ {[%emt 0:00:00]} Kc8 {[%emt 0:
00:13]} 35. Nf6 {[%emt 0:00:53]} Nc4 {[%emt 0:00:05]} 36. Qg4 {[%emt 0:00:10]}
Qe7 {[%emt 0:00:16]} 37. Rb1 {[%emt 0:00:11]} Bxa4 {[%emt 0:00:16]} 38. Nxd5 {
[%emt 0:00:11]} Qd7 {[%emt 0:00:12]} 39. Nf4 {[%emt 0:00:25]} Re8 {[%emt 0:00:
10]} 40. Nxg6 {[%emt 0:00:20]} Bc6 {[%emt 0:00:08]} 41. h5 {[%emt 0:00:21]} Bd5
{[%emt 0:00:13]} 42. Nf4 {[%emt 0:00:21]} Kc7 {[%emt 0:00:09]} 43. Rc1 {
[%emt 0:00:43]} Qf7 {[%emt 0:00:06]} 44. Qg3 {[%emt 0:00:25]} Rg8 {[%emt 0:00:
09]} 45. Nxd5+ {[%emt 0:00:07]} exd5 {[%emt 0:00:01]} 46. e6+ {[%emt 0:00:02]}
1-0

[Event "European Rapid Championship 2021"]
[Site "Katowice"]
[Date "2021.12.19"]
[Round "9.6"]
[White "Gumularz, Szymon"]
[Black "Fridman, Daniel"]
[Result "1/2-1/2"]
[ECO "B12"]
[WhiteElo "2452"]
[BlackElo "2626"]
[Annotator "ChessBase"]
[PlyCount "103"]
[EventDate "2021.12.18"]
[EventType "swiss"]
[EventCountry "POL"]
[SourceTitle "playchess.com"]
[Source "ChessBase"]
[SourceQuality "1"]
[TimeControl "900+10"]

1. e4 {[%emt 0:00:02]} c6 {[%emt 0:00:01]} 2. d4 {[%emt 0:00:05]} d5 {[%emt 0:
00:02]} 3. e5 {[%emt 0:00:03]} Bf5 {[%emt 0:00:09]} 4. h4 {[%emt 0:00:06]} h5 {
[%emt 0:00:02]} 5. Bd3 {[%emt 0:00:02]} Bxd3 {[%emt 0:00:01]} 6. Qxd3 {[%emt 0:
00:01]} e6 {[%emt 0:00:01]} 7. Nf3 {[%emt 0:00:06]} Qa5+ {[%emt 0:00:59]} 8.
Nbd2 {[%emt 0:00:07]} Qa6 {[%emt 0:00:13]} 9. c4 {[%emt 0:00:04]} Nh6 {[%emt 0:
00:08]} 10. O-O {[%emt 0:00:05]} Nd7 {[%emt 0:00:06]} 11. b3 {[%emt 0:00:04]}
Nf5 {[%emt 0:00:03]} 12. a4 {[%emt 0:00:04]} Be7 {[%emt 0:00:40]} 13. Ba3 {
[%emt 0:00:03]} c5 {[%emt 0:01:22]} 14. Qc3 {[%emt 0:00:34]} Qc6 {[%emt 0:02:
48]} 15. Rfd1 {[%emt 0:00:08]} O-O {[%emt 0:00:28]} 16. cxd5 {[%emt 0:00:07]}
exd5 {[%emt 0:00:22]} 17. Rac1 {[%emt 0:00:24]} Rac8 {[%emt 0:01:49]} 18. Qd3 {
[%emt 0:00:34]} Qe6 {[%emt 0:00:55]} 19. Re1 {[%emt 0:01:39]} Rc6 {[%emt 0:01:
07]} 20. dxc5 {[%emt 0:00:34]} Nxc5 {[%emt 0:00:20]} 21. Qb1 {[%emt 0:00:52]}
Rfc8 {[%emt 0:00:09]} 22. g3 {[%emt 0:01:06]} Qg6 {[%emt 0:00:07]} 23. e6 {
[%emt 0:06:27]} Rxe6 {[%emt 0:04:00]} 24. b4 {[%emt 0:00:10]} Rxe1+ {[%emt 0:
00:03]} 25. Nxe1 {[%emt 0:00:10]} Qg4 {[%emt 0:00:13]} 26. Ng2 {[%emt 0:01:18]}
Nd4 {[%emt 0:00:27]} 27. bxc5 {[%emt 0:01:16]} Ne2+ {[%emt 0:00:02]} 28. Kh2 {
[%emt 0:00:01]} Nxc1 {[%emt 0:00:02]} 29. Qxc1 {[%emt 0:00:21]} Qxa4 {[%emt 0:
00:37]} 30. Bb2 {[%emt 0:00:04]} Bxc5 {[%emt 0:00:28]} 31. Nf3 {[%emt 0:00:05]}
Qg4 {[%emt 0:00:36]} 32. Ne5 {[%emt 0:00:57]} Qf5 {[%emt 0:00:05]} 33. Qd1 {
[%emt 0:01:07]} Qxf2 {[%emt 0:00:21]} 34. Nd3 {[%emt 0:00:01]} Qf5 {[%emt 0:01:
40]} 35. Nxc5 {[%emt 0:00:09]} Rxc5 {[%emt 0:00:02]} 36. Qd4 {[%emt 0:00:12]}
Qf6 {[%emt 0:00:01]} 37. Qxc5 {[%emt 0:00:04]} Qxb2 {[%emt 0:00:01]} 38. Qc8+ {
[%emt 0:00:23]} Kh7 {[%emt 0:00:01]} 39. Qf5+ {[%emt 0:00:01]} Kg8 {[%emt 0:00:
00]} 40. Qxh5 {[%emt 0:00:43]} a5 {[%emt 0:00:23]} 41. Qxd5 {[%emt 0:00:22]} a4
{[%emt 0:00:01]} 42. Qd8+ {[%emt 0:00:50]} Kh7 {[%emt 0:00:01]} 43. Qd3+ {
[%emt 0:00:11]} g6 {[%emt 0:00:01]} 44. h5 {[%emt 0:00:19]} a3 {[%emt 0:00:01]}
45. hxg6+ {[%emt 0:00:01]} fxg6 {[%emt 0:00:01]} 46. Qd7+ {[%emt 0:00:07]} Kh6
{[%emt 0:00:01]} 47. Qh3+ {[%emt 0:00:04]} Kg7 {[%emt 0:00:01]} 48. Qd7+ {
[%emt 0:00:01]} Kg8 {[%emt 0:00:44]} 49. Qd8+ {[%emt 0:00:15]} Kh7 {[%emt 0:00:
14]} 50. Qh4+ {[%emt 0:00:02]} Kg8 {[%emt 0:00:02]} 51. Qd8+ {[%emt 0:00:02]}
Kh7 {[%emt 0:00:16]} 52. Qh4+ {[%emt 0:00:04]} 1/2-1/2

[Event "European Rapid Championship 2021"]
[Site "Katowice"]
[Date "2021.12.19"]
[Round "9.6"]
[White "Dzierzak, Radoslaw"]
[Black "Kalogeris, Ioannis"]
[Result "1/2-1/2"]
[ECO "C50"]
[WhiteElo "2075"]
[BlackElo "2357"]
[Annotator "NA"]
[PlyCount "67"]
[EventDate "2021.12.18"]
[EventType "swiss"]
[EventCountry "POL"]
[SourceTitle "playchess.com"]
[Source "ChessBase"]
[SourceQuality "1"]
[TimeControl "900+10"]

1. e4 {[%emt 0:00:02]} e5 {[%emt 0:02:22]} 2. Nf3 {[%emt 0:00:02]} Nc6 {
[%emt 0:00:02]} 3. Bc4 {[%emt 0:00:02]} Bc5 {[%emt 0:00:03]} 4. O-O {[%emt 0:
00:03]} Nf6 {[%emt 0:00:02]} 5. d3 {[%emt 0:00:02]} O-O {[%emt 0:00:04]} 6. Re1
{[%emt 0:00:01]} d6 {[%emt 0:00:03]} 7. c3 {[%emt 0:00:04]} Bb6 {[%emt 0:00:06]
} 8. Bb3 {[%emt 0:00:07]} Ne7 {[%emt 0:00:03]} 9. Nbd2 {[%emt 0:00:16]} Ng6 {
[%emt 0:00:22]} 10. Nf1 {[%emt 0:00:16]} c6 {[%emt 0:00:27]} 11. Ng3 {[%emt 0:
00:30]} h6 {[%emt 0:01:11]} 12. h3 {[%emt 0:00:17]} Be6 {[%emt 0:00:05]} 13.
Be3 {[%emt 0:00:22]} Bxe3 {[%emt 0:00:11]} 14. Rxe3 {[%emt 0:00:03]} Qb6 {
[%emt 0:00:30]} 15. Bxe6 {[%emt 0:01:05]} fxe6 {[%emt 0:00:03]} 16. Qc2 {
[%emt 0:00:03]} a5 {[%emt 0:01:43]} 17. a4 {[%emt 0:00:15]} Rf7 {[%emt 0:01:04]
} 18. d4 {[%emt 0:02:52]} Raf8 {[%emt 0:00:09]} 19. dxe5 {[%emt 0:00:30]} dxe5
{[%emt 0:00:02]} 20. Rd1 {[%emt 0:00:55]} Nd7 {[%emt 0:00:03]} 21. Red3 {
[%emt 0:01:55]} Nc5 {[%emt 0:00:02]} 22. R3d2 {[%emt 0:00:01]} Rxf3 {[%emt 0:
00:38]} 23. gxf3 {[%emt 0:00:10]} Rxf3 {[%emt 0:01:27]} 24. Rd8+ {[%emt 0:02:
21]} Kh7 {[%emt 0:00:02]} 25. Qe2 {[%emt 0:00:41]} Rxg3+ {[%emt 0:00:40]} 26.
fxg3 {[%emt 0:00:21]} Nd7+ {[%emt 0:00:02]} 27. Kg2 {[%emt 0:00:30]} Qxd8 {
[%emt 0:00:05]} 28. Qd2 {[%emt 0:02:34]} Ngf8 {[%emt 0:00:15]} 29. b4 {[%emt 0:
02:09]} Qb6 {[%emt 0:01:06]} 30. Rf1 {[%emt 0:00:46]} Kg8 {[%emt 0:00:26]} 31.
Qf2 {[%emt 0:00:46]} axb4 {[%emt 0:00:40]} 32. Qf7+ {[%emt 0:00:15]} Kh7 {
[%emt 0:00:02]} 33. Qe7 {[%emt 0:00:06]} Qe3 {[%emt 0:01:29]} 34. Rf7 1/2-1/2

[Event "European Rapid Championship 2021"]
[Site "Katowice"]
[Date "2021.12.19"]
[Round "9.7"]
[White "Pultinevicius, Paulius"]
[Black "Dragnev, Valentin"]
[Result "1-0"]
[ECO "E20"]
[WhiteElo "2536"]
[BlackElo "2409"]
[Annotator "ChessBase"]
[PlyCount "79"]
[EventDate "2021.12.18"]
[EventType "swiss"]
[EventCountry "POL"]
[SourceTitle "playchess.com"]
[Source "ChessBase"]
[SourceQuality "1"]
[TimeControl "900+10"]

1. d4 {[%emt 0:00:01]} Nf6 {[%emt 0:00:03]} 2. c4 {[%emt 0:00:01]} e6 {[%emt 0:
00:03]} 3. Nc3 {[%emt 0:00:02]} Bb4 {[%emt 0:00:08]} 4. f3 {[%emt 0:00:34]} c5
{[%emt 0:00:03]} 5. d5 {[%emt 0:00:03]} d6 {[%emt 0:00:18]} 6. e4 {[%emt 0:00:
04]} b5 {[%emt 0:00:02]} 7. Bd2 {[%emt 0:00:51]} a6 {[%emt 0:00:27]} 8. a4 {
[%emt 0:01:26]} Bxc3 {[%emt 0:00:23]} 9. Bxc3 {[%emt 0:00:09]} b4 {[%emt 0:00:
02]} 10. Bd2 {[%emt 0:00:08]} O-O {[%emt 0:00:06]} 11. Ne2 {[%emt 0:00:44]}
exd5 {[%emt 0:00:20]} 12. cxd5 {[%emt 0:00:04]} Nh5 {[%emt 0:00:18]} 13. Be3 {
[%emt 0:00:45]} f5 {[%emt 0:01:22]} 14. exf5 {[%emt 0:00:01]} Rxf5 {[%emt 0:01:
28]} 15. Qd2 {[%emt 0:00:01]} Nd7 {[%emt 0:00:53]} 16. O-O-O {[%emt 0:01:19]}
Rf8 {[%emt 0:04:16]} 17. g4 {[%emt 0:03:02]} Nhf6 {[%emt 0:00:07]} 18. Nf4 {
[%emt 0:00:04]} Ne5 {[%emt 0:00:17]} 19. Be2 {[%emt 0:00:33]} Qe8 {[%emt 0:00:
40]} 20. b3 {[%emt 0:00:32]} c4 {[%emt 0:00:47]} 21. g5 {[%emt 0:03:03]} Nh5 {
[%emt 0:03:10]} 22. Nxh5 {[%emt 0:01:34]} Qxh5 {[%emt 0:00:01]} 23. Qxb4 {
[%emt 0:00:08]} Bf5 {[%emt 0:00:48]} 24. Qxd6 {[%emt 0:02:33]} Rfe8 {[%emt 0:
01:12]} 25. b4 {[%emt 0:00:19]} Ng6 {[%emt 0:01:00]} 26. Qc5 {[%emt 0:00:13]}
c3 {[%emt 0:00:36]} 27. d6 {[%emt 0:00:23]} Bd7 {[%emt 0:00:01]} 28. a5 {
[%emt 0:00:48]} Qh3 {[%emt 0:00:11]} 29. Rde1 {[%emt 0:00:18]} Rac8 {[%emt 0:
00:18]} 30. Qd5+ {[%emt 0:00:09]} Be6 {[%emt 0:00:07]} 31. Qd4 {[%emt 0:00:01]}
Qf5 {[%emt 0:00:29]} 32. Bxa6 {[%emt 0:00:10]} Rcd8 {[%emt 0:00:17]} 33. Bd3 {
[%emt 0:00:10]} Qf7 {[%emt 0:00:01]} 34. Qxc3 {[%emt 0:00:10]} Rxd6 {[%emt 0:
00:23]} 35. Bc5 {[%emt 0:00:00]} Rxd3 {[%emt 0:00:10]} 36. Qxd3 {[%emt 0:00:02]
} Nf4 {[%emt 0:00:01]} 37. Qd4 {[%emt 0:00:12]} Rc8 {[%emt 0:00:12]} 38. Kb2 {
[%emt 0:00:04]} Qf5 {[%emt 0:00:07]} 39. Re4 {[%emt 0:00:08]} Nd5 {[%emt 0:00:
15]} 40. Qe5 {[%emt 0:00:02]} 1-0

[Event "European Rapid Championship 2021"]
[Site "Katowice"]
[Date "2021.12.19"]
[Round "9.7"]
[White "Dzhuguryan, Tygran"]
[Black "Godzwon, Iwo"]
[Result "1/2-1/2"]
[ECO "A46"]
[WhiteElo "2047"]
[BlackElo "2352"]
[Annotator "NA"]
[PlyCount "113"]
[EventDate "2021.12.18"]
[EventType "swiss"]
[EventCountry "POL"]
[SourceTitle "playchess.com"]
[Source "ChessBase"]
[SourceQuality "1"]
[TimeControl "900+10"]

1. d4 {[%emt 0:00:03]} Nf6 {[%emt 0:00:01]} 2. Nf3 {[%emt 0:00:06]} e6 {
[%emt 0:00:08]} 3. e3 {[%emt 0:00:07]} c5 {[%emt 0:00:14]} 4. Bd3 {[%emt 0:00:
08]} Nc6 {[%emt 0:00:18]} 5. a3 {[%emt 0:00:23]} cxd4 {[%emt 0:02:11]} 6. exd4
{[%emt 0:00:03]} g6 {[%emt 0:00:01]} 7. O-O {[%emt 0:00:06]} Bg7 {[%emt 0:00:
02]} 8. Re1 {[%emt 0:00:30]} O-O {[%emt 0:00:03]} 9. c3 {[%emt 0:01:21]} b6 {
[%emt 0:00:12]} 10. Bg5 {[%emt 0:00:37]} Bb7 {[%emt 0:00:59]} 11. Nbd2 {
[%emt 0:00:08]} h6 {[%emt 0:00:39]} 12. Bf4 {[%emt 0:00:23]} d5 {[%emt 0:00:20]
} 13. h3 {[%emt 0:00:03]} Nd7 {[%emt 0:01:02]} 14. a4 {[%emt 0:01:22]} Re8 {
[%emt 0:00:05]} 15. Nb3 {[%emt 0:01:19]} Qc8 {[%emt 0:00:29]} 16. Qd2 {[%emt 0:
01:29]} h5 {[%emt 0:00:32]} 17. Bh6 {[%emt 0:02:27]} Ba6 {[%emt 0:00:32]} 18.
Bxg7 {[%emt 0:00:20]} Kxg7 {[%emt 0:00:01]} 19. Bb5 {[%emt 0:00:29]} Nf6 {
[%emt 0:01:02]} 20. Bxc6 {[%emt 0:01:54]} Qxc6 {[%emt 0:00:01]} 21. Ne5 {
[%emt 0:00:02]} Qc7 {[%emt 0:00:00]} 22. Qf4 {[%emt 0:00:15]} Re7 {[%emt 0:00:
01]} 23. Nd2 {[%emt 0:00:09]} Ne8 {[%emt 0:00:11]} 24. Qg5 {[%emt 0:00:21]} Nd6
{[%emt 0:00:14]} 25. g4 {[%emt 0:00:08]} Rh8 {[%emt 0:00:13]} 26. Kg2 {[%emt 0:
00:23]} Bb7 {[%emt 0:00:29]} 27. f3 {[%emt 0:00:10]} Qd8 {[%emt 0:00:43]} 28.
Nf1 {[%emt 0:00:23]} Qe8 {[%emt 0:00:11]} 29. Qf4 {[%emt 0:00:10]} Qd8 {
[%emt 0:01:00]} 30. g5 {[%emt 0:00:21]} Rc7 {[%emt 0:00:09]} 31. Ne3 {[%emt 0:
00:07]} Rf8 {[%emt 0:00:03]} 32. h4 {[%emt 0:00:33]} Nc4 {[%emt 0:00:56]} 33.
b3 {[%emt 0:01:45]} Na5 {[%emt 0:02:52]} 34. b4 {[%emt 0:00:35]} Nc4 {[%emt 0:
00:02]} 35. N5xc4 {[%emt 0:00:31]} dxc4 {[%emt 0:00:01]} 36. Qe5+ {[%emt 0:00:
09]} f6 {[%emt 0:00:17]} 37. gxf6+ {[%emt 0:00:14]} Rxf6 {[%emt 0:00:01]} 38.
d5 {[%emt 0:00:13]} Bxd5 {[%emt 0:00:25]} 39. Nxd5 {[%emt 0:00:10]} exd5 {
[%emt 0:00:01]} 40. Rad1 {[%emt 0:00:09]} Rd7 {[%emt 0:00:02]} 41. Rd4 {
[%emt 0:00:08]} Kf7 {[%emt 0:00:38]} 42. Qg5 {[%emt 0:00:18]} Rf5 {[%emt 0:00:
37]} 43. Qxd8 {[%emt 0:00:07]} Rxd8 {[%emt 0:00:01]} 44. Red1 {[%emt 0:00:03]}
Ke6 {[%emt 0:00:04]} 45. Rxc4 {[%emt 0:00:07]} g5 {[%emt 0:01:31]} 46. Rc6+ {
[%emt 0:00:43]} Kd7 {[%emt 0:02:36]} 47. Rh6 {[%emt 0:00:06]} gxh4 {[%emt 0:00:
14]} 48. c4 {[%emt 0:00:01]} Rg8+ {[%emt 0:00:01]} 49. Kf2 {[%emt 0:00:01]}
Rgg5 {[%emt 0:00:04]} 50. cxd5 {[%emt 0:00:36]} Rxd5 {[%emt 0:00:19]} 51. f4 {
[%emt 0:00:28]} Rgf5 {[%emt 0:00:34]} 52. Rxd5+ {[%emt 0:00:02]} Rxd5 {[%emt 0:
00:01]} 53. Rh7+ {[%emt 0:00:02]} Kc6 {[%emt 0:00:09]} 54. Rxa7 {[%emt 0:00:02]
} Rd4 {[%emt 0:00:00]} 55. b5+ {[%emt 0:00:11]} Kc5 {[%emt 0:00:03]} 56. a5 {
[%emt 0:00:01]} Rxf4+ 57. Kg2 {[%emt 0:00:01]} 1/2-1/2

[Event "European Rapid Championship 2021"]
[Site "Katowice"]
[Date "2021.12.19"]
[Round "9.8"]
[White "Durarbayli, Vasif"]
[Black "Piesik, Piotr"]
[Result "1/2-1/2"]
[ECO "B14"]
[WhiteElo "2532"]
[BlackElo "2342"]
[Annotator "ChessBase"]
[PlyCount "63"]
[EventDate "2021.12.18"]
[EventType "swiss"]
[EventCountry "POL"]
[SourceTitle "playchess.com"]
[Source "ChessBase"]
[SourceQuality "1"]
[TimeControl "900+10"]

1. e4 {[%emt 0:00:01]} c6 {[%emt 0:00:01]} 2. d4 {[%emt 0:00:01]} d5 {[%emt 0:
00:01]} 3. exd5 {[%emt 0:00:01]} cxd5 {[%emt 0:00:01]} 4. c4 {[%emt 0:00:01]}
Nf6 {[%emt 0:00:02]} 5. Nc3 {[%emt 0:00:00]} e6 {[%emt 0:00:01]} 6. Nf3 {
[%emt 0:00:02]} Bb4 {[%emt 0:00:01]} 7. cxd5 {[%emt 0:00:06]} Nxd5 {[%emt 0:00:
03]} 8. Bd2 {[%emt 0:00:02]} Nc6 {[%emt 0:00:06]} 9. Bd3 {[%emt 0:00:02]} O-O {
[%emt 0:00:47]} 10. O-O {[%emt 0:00:05]} Nf6 {[%emt 0:00:12]} 11. Bg5 {[%emt 0:
01:13]} Be7 {[%emt 0:00:43]} 12. a3 {[%emt 0:00:12]} b6 {[%emt 0:01:04]} 13.
Re1 {[%emt 0:00:29]} Bb7 {[%emt 0:00:07]} 14. Bc2 {[%emt 0:00:42]} Rc8 {
[%emt 0:01:04]} 15. Qd3 {[%emt 0:02:12]} g6 {[%emt 0:00:02]} 16. Rad1 {[%emt 0:
00:02]} Nd5 {[%emt 0:00:21]} 17. Bh6 {[%emt 0:01:28]} Re8 {[%emt 0:00:02]} 18.
Ba4 {[%emt 0:01:14]} Nxc3 {[%emt 0:01:04]} 19. bxc3 {[%emt 0:00:03]} Qd5 {
[%emt 0:00:07]} 20. c4 {[%emt 0:01:59]} Qh5 {[%emt 0:00:14]} 21. Qe3 {[%emt 0:
00:48]} Red8 {[%emt 0:03:07]} 22. d5 {[%emt 0:01:10]} exd5 {[%emt 0:00:02]} 23.
Rxd5 {[%emt 0:01:17]} Bc5 {[%emt 0:03:28]} 24. Qd2 {[%emt 0:01:42]} Rxd5 {
[%emt 0:00:31]} 25. cxd5 {[%emt 0:00:02]} Nd4 {[%emt 0:00:20]} 26. Nxd4 {
[%emt 0:01:05]} Bxd4 {[%emt 0:00:02]} 27. Qxd4 {[%emt 0:01:03]} Qxh6 {[%emt 0:
00:01]} 28. Bc6 {[%emt 0:00:14]} Bxc6 {[%emt 0:00:34]} 29. dxc6 {[%emt 0:00:00]
} Qf8 {[%emt 0:00:01]} 30. Qd7 {[%emt 0:00:14]} Qd8 {[%emt 0:00:28]} 31. g3 {
[%emt 0:00:33]} Kg7 {[%emt 0:00:13]} 32. Qxd8 {[%emt 0:01:01]} 1/2-1/2